Cogmind - Beta 15 @@@ ROGUE MODE // 2025.08.22 @ 14:09:28 Player: NQH Result: Destroyed by D-53 Grenadier with Mini Grenade Launcher Performance ------------- Evolutions (1) 500 Regions Visited (4) 800 Robots Destroyed (16) 80 Value Destroyed (264) 264 Prototype IDs (0) 0 Alien Tech Used (0) 0 Bonus (176) 176 TOTAL SCORE: 1820 Bonus ------- Follower Combat Kills 176 Cogmind --------- Core Integrity 0/400 Matter 300/300 Energy 71/100 System Corruption 0% Temperature Cool (0) Movement Core (1350) Ox26 Location -9/Mines Parts ------- > --- POWER (1) -------- (None) > --- PROPULSION (4) --- (None) > --- UTILITY (2) ------ Heat Sink Huge Storage Unit > --- WEAPON (2) ------- (None) > --- INVENTORY (25) --- Ion Engine Ion Engine Light Ion Engine Light Ion Engine Light Ion Engine Heat Sink Small Battery (100) Medium Matter Pod (100) Medium Matter Pod (100) Large Matter Pod (150) Visual Processing Unit Beam Cannon Beam Cannon Beam Cannon Grenade Launcher Peak State ------------ > --- POWER ------------ Light Ion Engine > --- PROPULSION ------- Light Treads Light Treads > --- UTILITY ---------- Heat Sink High-capacity Storage Unit > --- WEAPON ----------- Beam Cannon Beam Cannon > --- INVENTORY -------- Ion Engine Ion Engine Light Ion Engine Light Ion Engine Light Ion Engine Heat Sink Small Battery Medium Matter Pod Medium Matter Pod Large Matter Pod Visual Processing Unit Beam Cannon Beam Cannon Beam Cannon Beam Cannon Beam Cannon Beam Cannon Beam Cannon Grenade Launcher [Rating: 9] Favorites ----------- Power Light Ion Engine Engine Light Ion Engine Propulsion Light Treads Treads Light Treads Utility Heat Sink Device Heat Sink Storage Huge Storage Unit Weapon Beam Cannon Energy Gun Small Laser Energy Cannon Beam Cannon Ballistic Gun Light Assault Rifle Build | -11 -10 -10 -9 -9 ------- Run | Yrd Mat Min Mat Min Slots Evolved 2 | . . . 2 . Power . | . . . . . Propulsion 2 | . . . 2 . Utility . | . . . . . Weapon . | . . . . . Parts Attached 17 | 6 6 . 2 3 Power 2 | 1 1 . . . Engine 2 | 1 1 . . . Core . | . . . . . Reactor . | . . . . . Propulsion 3 | 2 . . 1 . Treads 3 | 2 . . 1 . Leg . | . . . . . Wheel . | . . . . . Hover . | . . . . . Flight . | . . . . . Utility 4 | 1 3 . . . Device 1 | . 1 . . . Storage 3 | 1 2 . . . Processor . | . . . . . Hackware . | . . . . . Protection . | . . . . . Artifact . | . . . . . Weapon 8 | 2 2 . 1 3 Energy Gun 1 | 1 . . . . Energy Cannon 6 | . 2 . 1 3 Ballistic Gun 1 | 1 . . . . Ballistic Cannon . | . . . . . Launcher . | . . . . . Special Weapon . | . . . . . Impact Weapon . | . . . . . Slashing Weapon . | . . . . . Piercing Weapon . | . . . . . Special Melee Weapon . | . . . . . Unidentified Prototypes . | . . . . . Parts Lost 10 | . 1 . 3 6 Power 1 | . . . . 1 Propulsion 3 | . 1 . 1 1 Utility . | . . . . . Weapon 6 | . . . 2 4 Highest Loss Streak 7 | . 1 . 1 7 To Critical Strikes . | . . . . . Average Backups 14 | . 11 19 18 16 Power 3 | . 2 5 5 5 Propulsion . | . . . . . Utility 4 | . 2 6 6 6 Weapon 7 | . 7 8 7 5 Tool/Special . | . . . . . Unused Backups 14 | . . . . 14 Power 4 | . . . . 4 Propulsion . | . . . . . Utility 6 | . . . . 6 Weapon 4 | . . . . 4 Tool/Special . | . . . . . Average Slot Usage (%) 81 | . 91 85 60 50 Engine 13 | . 14 14 11 4 Treads 17 | . 25 14 5 6 Device 10 | . 8 14 11 11 Storage 13 | . 14 14 11 11 Energy Cannon 25 | . 27 28 22 17 Peak Build Rating 9 | 6 9 8 8 7 Average Rating 7 | 4 7 8 7 5 On Entrance 5 | . 6 8 8 6 Naked Turns . | . . . . . Heaviest Build 90 | 12 90 90 90 87 Greatest Support 40 | 40 40 20 20 3 Greatest Overweight (x) 29 | . 16 4 29 28 Average Overweight (x) 2 | . 1 4 9 28 Largest Inventory Capacity 25 | 8 25 25 25 25 Average Capacity 21 | 7 19 25 25 25 Most Carried 20 | . 20 19 19 17 Average Carried 14 | . 12 19 18 16 Final Capacity 25 | 8 25 25 25 25 Final Carried 19 | . 19 19 18 15 Class Distribution -------------------- 100% | Mutant Dominant Class ---------------- Mutant | -10/Materials Mutant | -10/Mines Mutant | -9/Materials Mutant | -9/Mines Resources | -11 -10 -10 -9 -9 ----------- Run | Yrd Mat Min Mat Min Matter Collected 739 | 158 555 4 22 . Remotely . | . . . . . Salvage Created 452 | . 403 22 . 27 Parts 26 | . 24 2 . . Haulers Intercepted . | . . . . . Recyclers Shooed 1 | . . . 1 . Parts Field Recycled . | . . . . . Retrieved Matter . | . . . . . Parts Self-Destructed . | . . . . . Prevented . | . . . . . Kills | -11 -10 -10 -9 -9 ------- Run | Yrd Mat Min Mat Min Combat Hostiles Destroyed 15 | . 11 2 . 2 Cannons 15 | . 11 2 . 2 Classes Destroyed 5 | . 4 . . 1 Recycler 1 | . 1 . . . Watcher 2 | . 2 . . . Swarmer 9 | . 7 2 . . Grunt 4 | . 4 . . . Assembled 2 | . . . . 2 Best Kill Streak 4 | . 4 2 . 2 Combat Bots Only 4 | . 4 2 . 2 Max Kills in Single Turn 2 | . 2 1 . 1 Gunslinging . | . . . . . Exploded . | . . . . . Melee . | . . . . . Uniques/NPCs Destroyed . | . . . . . Combat | -11 -10 -10 -9 -9 -------- Run | Yrd Mat Min Mat Min Hostile Shots Fired 152 | . 54 5 10 83 Missed 38 | . 11 1 3 23 Hits 114 | . 43 4 7 60 Melee 6 | . . . . 6 Projectile 108 | . 43 4 7 54 AOE 7 | . . . . 7 Damage Taken 1748 | . 515 34 106 1093 Core 492 | . 89 . 38 365 Absorbed by Shields . | . . . . . Core Remaining (%) 82 | 100 . 64 . . Volleys Fired 40 | . 27 3 3 7 Largest 2 | . 2 2 2 2 Hottest 120 | . 120 120 120 120 Shots Fired 80 | . 54 6 6 14 Gun . | . . . . . Cannon 80 | . 54 6 6 14 Launcher . | . . . . . Special . | . . . . . Kinetic . | . . . . . Thermal 80 | . 54 6 6 14 Explosive . | . . . . . Electromagnetic . | . . . . . Robot Hit Streak 10 | . 10 4 6 3 Robot Miss Streak 6 | . 3 3 4 6 Penetration Max . | . . . . . Secondary Targets . | . . . . . Shots Hit Robots 38 | . 26 4 2 6 Core Hits 20 | . 13 2 1 4 Critical Kills . | . . . . . Critical Parts Destroyed . | . . . . . Critical Strikes . | . . . . . Melee Attacks . | . . . . . Impact . | . . . . . Slashing . | . . . . . Piercing . | . . . . . Sneak Attacks . | . . . . . Combat Hostiles . | . . . . . Follow-up Attacks . | . . . . . Damage Inflicted 791 | . 529 71 69 122 Guns . | . . . . . Cannons 786 | . 524 71 69 122 Explosions . | . . . . . Melee . | . . . . . Ramming 5 | . 5 . . . Kinetic . | . . . . . Thermal 786 | . 524 71 69 122 Explosive . | . . . . . Electromagnetic . | . . . . . Impact . | . . . . . Slashing . | . . . . . Piercing . | . . . . . Highest Corruption 3 | . 3 3 . . Average Corruption 1 | . 1 3 . . Corruption Purged . | . . . . . Corruption Blocked . | . . . . . Effects 24 | . 15 9 . . Message Errors 4 | . 1 3 . . Matter Fused 5 | . 3 2 . . Heat Flow Errors 3 | . 2 1 . . Energy Discharges 7 | . 5 2 . . Parts Fused 1 | . 1 . . . Data Loss (minor) 4 | . 3 1 . . Overload Shots . | . . . . . Overflow Damage 15 | . 15 . . . Projectiles 15 | . 15 . . . Explosions . | . . . . . Melee . | . . . . . Knockbacks . | . . . . . Impact . | . . . . . Kinetic . | . . . . . Secondary . | . . . . . Self-Inflicted Damage . | . . . . . Shots . | . . . . . Rammed 4 | . 3 . 1 . Targets Rammed 4 | . 3 . 1 . Kicked . | . . . . . Crushed . | . . . . . Highest Temperature 445 | . 445 137 21 156 Average Temperature 104 | . 118 54 14 86 Received Heat Transfer 266 | . 150 . 36 80 Effects 1 | . 1 . . . Shutdowns 1 | . 1 . . . Siege Activations . | . . . . . Martial Activations . | . . . . . Shielding Activations . | . . . . . Robots Disrupted . | . . . . . Combat Hostiles . | . . . . . Robots Corrupted . | . . . . . Combat Hostiles . | . . . . . Parts Fried . | . . . . . Impact Corruptions . | . . . . . Robots Melted . | . . . . . Combat Hostiles . | . . . . . Parts Melted . | . . . . . Heat Transferred 1665 | . 1110 148 148 259 Parts Sabotaged . | . . . . . Parts Stolen . | . . . . . Parts Stripped . | . . . . . Power Chain Reactions . | . . . . . Alert | -11 -10 -10 -9 -9 ------- Run | Yrd Mat Min Mat Min Maximum Alert Level . | . . . . . Low Security (%) 100 | 100 100 100 100 100 Level 1 . | . . . . . Level 2 . | . . . . . Level 3 . | . . . . . Level 4 . | . . . . . Level 5 . | . . . . . High Security . | . . . . . Max Security . | . . . . . Peak Influence 140 | . 140 78 66 17 Initial 17 | . . 17 . 17 Average 19 | . 25 18 14 3 Influence Increases 661 | . 311 149 201 . Destroy 0b10 Robot/C 460 | . 220 100 140 . Destroy 0b10 Robot/NC 25 | . 15 . 10 . Destroy Leader 104 | . 44 20 40 . Allied During Kill 25 | . . 14 11 . Destroy Structure 2 | . 2 . . . Lose Combat Pursuer 45 | . 30 15 . . Influence Decreases 661 | . 265 195 156 45 Entered New Map 57 | . . 29 . 28 Time Decay 547 | . 265 146 136 . Lost Part 20 | . . . 20 . Lost Ally 37 | . . 20 . 17 Squads Dispatched 2 | . 1 . 1 . Investigation 1 | . 1 . . . Extermination . | . . . . . Reinforcement 1 | . . . 1 . Assault . | . . . . . Garrison . | . . . . . Intercept . | . . . . . Searches Triggered . | . . . . . Construction Impeded . | . . . . . Haulers Reinforced . | . . . . . Active Scanning Responses . | . . . . . Cargo Convoy Interrupts . | . . . . . Stealth | -11 -10 -10 -9 -9 --------- Run | Yrd Mat Min Mat Min Distress Signals 2 | . 1 . 1 . Communications Jammed . | . . . . . Distress Signals . | . . . . . Times Spotted 65 | . 23 6 14 22 Peak Tracking Total 20 | . 3 2 4 20 Tactical Retreats 3 | . 1 1 . 1 Traps | -11 -10 -10 -9 -9 ------- Run | Yrd Mat Min Mat Min Traps Triggered 6 | . 6 . . . Indirectly . | . . . . . Trap Hack Attempts . | . . . . . Triggered . | . . . . . Disarmed . | . . . . . Reprogrammed . | . . . . . Reused . | . . . . . Traps Extracted . | . . . . . Installed . | . . . . . Triggered . | . . . . . Machines | -11 -10 -10 -9 -9 ---------- Run | Yrd Mat Min Mat Min Machines Disabled . | . . . . . Max in Single Turn . | . . . . . Machines Repaired . | . . . . . Machines Dismantled . | . . . . . Machines Sabotaged . | . . . . . Overloaded Fab Kills . | . . . . . Hacking | -11 -10 -10 -9 -9 --------- Run | Yrd Mat Min Mat Min Machines Accessed . | . . . . . Terminals . | . . . . . Fabricators . | . . . . . Repair Stations . | . . . . . Recycling Units . | . . . . . Scanalyzers . | . . . . . Garrison Access . | . . . . . Total Hacks . | . . . . . Successful . | . . . . . Failed . | . . . . . Catastrophic . | . . . . . Database Lockouts . | . . . . . Manual . | . . . . . Terminals . | . . . . . Fabricators . | . . . . . Repair Stations . | . . . . . Recycling Units . | . . . . . Scanalyzers . | . . . . . Garrison Access . | . . . . . Terminal Hacks . | . . . . . Fabricator Hacks . | . . . . . Repair Station Hacks . | . . . . . Recycling Unit Hacks . | . . . . . Scanalyzer . | . . . . . Garrison Access Hacks . | . . . . . Unauthorized Hacks . | . . . . . Terminals . | . . . . . Fabricators . | . . . . . Repair Stations . | . . . . . Recycling Units . | . . . . . Scanalyzers . | . . . . . Garrison Access . | . . . . . Data Cores Recovered . | . . . . . Used . | . . . . . Hacking Detections . | . . . . . Full Trace Events . | . . . . . Feedback Events . | . . . . . Feedback Blocked . | . . . . . Robot Schematics Acquired . | . . . . . Robots Built . | . . . . . Authchips . | . . . . . Time . | . . . . . Total Robot Build Rating . | . . . . . Part Schematics Acquired . | . . . . . Parts Built . | . . . . . Authchips . | . . . . . Time . | . . . . . Total Part Build Rating . | . . . . . Parts Repaired . | . . . . . Time . | . . . . . Parts Recycled . | . . . . . Recycled Matter . | . . . . . Retrieved Matter . | . . . . . Retrieved Components . | . . . . . Parts Scanalyzed . | . . . . . Part Schematics Acquired . | . . . . . Parts Damaged . | . . . . . Bothacking | -11 -10 -10 -9 -9 ------------ Run | Yrd Mat Min Mat Min Used RIF Installer . | . . . . . Robots Hacked . | . . . . . Non-combat . | . . . . . Combat . | . . . . . Robot Hacks Applied . | . . . . . Relay Couplers Released . | . . . . . Fabnet Peak Effective % . | . . . . . Robots Rewired . | . . . . . Allies Hacked . | . . . . . Hacks Repelled . | . . . . . Allies | -11 -10 -10 -9 -9 -------- Run | Yrd Mat Min Mat Min Total Allies 2 | . . 2 . . Largest Group 2 | . . 2 1 1 Highest-Rated Group 38 | . . 38 31 31 Highest-Rated Ally 31 | . . 31 31 31 Total Orders . | . . . . . Ally Attacks 47 | . . 13 31 3 Total Damage 646 | . . 120 484 42 Kills 13 | . . 3 9 1 Allies Corrupted . | . . . . . Allies Melted . | . . . . . Intel | -11 -10 -10 -9 -9 ------- Run | Yrd Mat Min Mat Min Active Infowar (turns) . | . . . . . Robot Analysis Total . | . . . . . Derelict Logs Recovered 1 | . . 1 . . Drone Launches . | . . . . . Drone Recoveries . | . . . . . Exploration | -11 -10 -10 -9 -9 ------------- Run | Yrd Mat Min Mat Min Turns Passed 2661 | 92 1341 499 692 37 Spaces Moved 750 | 54 495 103 97 1 Core 25 | 2 1 . 21 1 Treads 725 | 52 494 103 76 . Legs . | . . . . . Wheels . | . . . . . Hover . | . . . . . Flight . | . . . . . Fastest Speed 50 | 50 160 480 480 1450 Average Speed 332 | 155 246 480 700 1450 Slowest Speed 1500 | 160 850 480 1500 1450 Overloaded Moves . | . . . . . Propulsion Burnouts . | . . . . . Robots Hopped . | . . . . . Potential Cave-ins . | . . . . . Cave-ins Triggered . | . . . . . Exploration Rate (%) 23 | 5 57 26 20 8 Regions Visited 4 Branch Regions 2 Pre-discovered Areas 1 | . . 1 . . Known Exits Taken . | . . . . . Unknown Exits Taken 4 | 1 1 1 1 . Scrap Searched . | . . . . . Spaces Dug . | . . . . . Terrain Destroyed . | . . . . . Melee . | . . . . . Projectile . | . . . . . AOE . | . . . . . Terrain Rammed . | . . . . . Walls Destroyed . | . . . . . Machines Disabled . | . . . . . Actions | -11 -10 -10 -9 -9 --------- Run | Yrd Mat Min Mat Min Total 837 | 59 559 105 102 12 Wait 1 | . . . . 1 Move 746 | 53 494 102 96 1 Hop . | . . . . . Pick Up 20 | . 20 . . . Fast Attach 13 | 6 6 . 1 . Attach 6 | . 2 . 1 3 Detach 1 | . 1 . . . Swap 2 | . 2 . . . Drop 4 | . 4 . . . Fire 40 | . 27 3 3 7 Melee . | . . . . . Ram . | . . . . . Kick . | . . . . . Crush 4 | . 3 . 1 . Escape Stasis . | . . . . . Rewire . | . . . . . Trap . | . . . . . Miscellaneous . | . . . . . Route ------- -11/Scrapyard -10/Materials (discovered 2 exits: [*Min x2]) -10/Mines -9/Materials (discovered 2 exits: [*Min] / [*Sto]) -9/Mines History --------- Turn | Location | Event 2 | -11/Scrapyard | Met Revision 17 4 | -11/Scrapyard | Discovered new exit (range 16) 93 | -11/Scrapyard | Entered Materials 300 | -10/Materials | Build established: Mutant 1102 | -10/Materials | Discovered new exit (range 6) 1320 | -10/Materials | Discovered new exit (range 12) 1434 | -10/Materials | Entered Mines 1520 | -10/Mines | Found a hidden stash of uninstalled traps 1693 | -10/Mines | Discovered new exit (range 15) 1933 | -10/Mines | Entered Materials 1933 | -9/Materials | Accompanied by 1 ally 1933 | -9/Materials | Evolved 2 slots: Propulsion x2 1938 | -9/Materials | Led the pair of lost Derelicts to an unsafe place 2428 | -9/Materials | Discovered new exit (range 15) 2521 | -9/Materials | Discovered new exit (range 15) 2625 | -9/Materials | Entered Mines 2625 | -9/Mines | Accompanied by 1 ally 2626 | -9/Mines | Assembled infested the area 2650 | -9/Mines | Core integrity fell below 50% 2657 | -9/Mines | Core integrity fell below 20% 2662 | -9/Mines | Destroyed by D-53 Grenadier with Mini Grenade Launcher Last Messages --------------- 02632_ as-82146 destroyed. 02633_ 9P-SLQ(g) destroyed. 02634_ Lgt. Ion Engine destroyed. 02636_ as-05306 destroyed. 02641_ as-77416 destroyed. 02643_ as-23084 destroyed. 02643_ Beam Cannon destroyed. 02647_ Lgt. Treads destroyed. 02649_ C-30 ARC bursts open, deploying its payload. 02649_ D-53 Grenadier unfolds itself. 02653_ as-55006 destroyed. 02653_ as-01201 destroyed. 02653_ as-45610 destroyed. 02653_ as-36134 destroyed. 02655_ Beam Cannon destroyed. 02655_ as-07074 destroyed. 02655_ Pressure Siphon disabled. 02655_ D-53 Grenadier suffers critical hit (Destroy). 02655_ D-53 Grenadier destroyed. 02658_ Beam Cannon destroyed. Map ----- +----------------------------------------------------+ | | | | | | | | | | | | | | | | | | | | | | | | | ?????????????????????????????????????? | | ?????????????????????????????????????? | | ???????????????????###???????????????? | | ?????????????????? ###?????????????? | | ?????????????????? %??????????????? | | ????????????????? ???????????????? | | ????????????????? #???????????????? | | ????????????????# ! #????????????????? | | ??????########## =%d#????????????????? | | ??????# = #????????????????? | | ?????? """ #????????????????? | | ????? """ #????????????????? | | ?????# """ #??????????????????? | | ??????# @ #??????????????????? | | ??????### a #????????????????? | | ????????# #???????????????? | | ????????## #??????????????? | | ?????????## #?????????????? | | ??????????### a ## #?????????????? | | ????????????# #?### ##?????????????? | | ????????????#a #?????#??????????????? | | ???????????? a ????????????????????? | | ???????????? ????????????????????? | | ????????????a